[Event "Titled Tuesday Blitz September 27 Early 2022"]
[White "Cramling Bellon, Anna"]
[Black "Ardila, Oscar Humberto"]
[WhiteFideId "32009232"]
[BlackFideId "4404742"]
[WhiteElo "1905"]
[BlackElo "1898"]
[Result "0-1"]
[Round "08"]
[TimeControl "180+1"]
[Date "2022.09.27"]
[WhiteClock "0:00:02"]
[BlackClock "0:00:42"]

1. d4 {[%clk 0:03:00]}  Nf6 {[%clk 0:02:58]} 2. c4 {[%clk 0:03:01]}  e6 {[%clk 0:02:59]} 3. Nc3 {[%clk 0:03:00]}  Bb4 {[%clk 0:02:59]} 4. Qc2 {[%clk 0:02:57]}  O-O {[%clk 0:02:59]} 5. e4 {[%clk 0:02:57]}  d6 {[%clk 0:02:58]} 6. Nf3 {[%clk 0:02:44]}  Nc6 {[%clk 0:02:57]} 7. Bg5 {[%clk 0:02:38]}  h6 {[%clk 0:02:56]} 8. Be3 {[%clk 0:02:36]}  e5 {[%clk 0:02:56]} 9. dxe5 {[%clk 0:02:21]}  Nxe5 {[%clk 0:02:54]} 10. Nxe5 {[%clk 0:02:20]}  dxe5 {[%clk 0:02:54]} 11. Rd1 {[%clk 0:02:21]}  Bd7 {[%clk 0:02:50]} 12. Be2 {[%clk 0:02:17]}  c6 {[%clk 0:02:49]} 13. O-O {[%clk 0:02:18]}  Qc7 {[%clk 0:02:49]} 14. f4 {[%clk 0:02:16]}  exf4 {[%clk 0:02:35]} 15. Bxf4 {[%clk 0:02:17]}  Qb6+ {[%clk 0:02:33]} 16. Kh1 {[%clk 0:02:15]}  Bxc3 {[%clk 0:02:31]} 17. Qxc3 {[%clk 0:02:09]}  Nxe4 {[%clk 0:02:22]} 18. Qf3 {[%clk 0:01:55]}  Nf6 {[%clk 0:02:16]} 19. Bxh6 {[%clk 0:01:38]}  Qxb2 {[%clk 0:01:57]} 20. Bxg7 {[%clk 0:00:20]}  Kxg7 {[%clk 0:01:40]} 21. Qg3+ {[%clk 0:00:20]}  Kh8 {[%clk 0:01:35]} 22. Qh4+ {[%clk 0:00:19]}  Nh7 {[%clk 0:01:33]} 23. Bd3 {[%clk 0:00:14]}  Qg7 {[%clk 0:01:30]} 24. Rf3 {[%clk 0:00:09]}  f5 {[%clk 0:01:19]} 25. Rg3 {[%clk 0:00:09]}  Qf7 {[%clk 0:01:18]} 26. Qd4+ {[%clk 0:00:06]}  Qf6 {[%clk 0:01:11]} 27. Qxd7 {[%clk 0:00:06]}  Rf7 {[%clk 0:01:06]} 28. Qxf7 {[%clk 0:00:04]}  Qxf7 {[%clk 0:01:06]} 29. Rf1 {[%clk 0:00:03]}  Rd8 {[%clk 0:00:55]} 30. h3 {[%clk 0:00:03]}  Qc7 {[%clk 0:00:52]} 31. Rgf3 {[%clk 0:00:03]}  Ng5 {[%clk 0:00:45]} 32. Re3 {[%clk 0:00:02]}  f4 {[%clk 0:00:42]} 0-1


[Site "https://www.chess.com"]

[Event "Titled Tuesday Blitz September 27 Early 2022"]
[White "Curtis, John"]
[Black "Mangialardo, Tiago Carvalho"]
[WhiteFideId "3200256"]
[BlackFideId "2130718"]
[WhiteElo "2203"]
[BlackElo "2011"]
[Result "1-0"]
[Round "08"]
[TimeControl "180+1"]
[Date "2022.09.27"]
[WhiteClock "0:00:12"]
[BlackClock "0:00:02"]

1. e4 {[%clk 0:03:00]}  e5 {[%clk 0:02:58]} 2. Nf3 {[%clk 0:02:58]}  Nc6 {[%clk 0:02:57]} 3. Bb5 {[%clk 0:02:58]}  a6 {[%clk 0:02:57]} 4. Bxc6 {[%clk 0:02:58]}  dxc6 {[%clk 0:02:57]} 5. O-O {[%clk 0:02:59]}  Bd6 {[%clk 0:02:57]} 6. d4 {[%clk 0:02:58]}  Bg4 {[%clk 0:02:05]} 7. dxe5 {[%clk 0:02:56]}  Bxf3 {[%clk 0:02:05]} 8. Qxf3 {[%clk 0:02:55]}  Bxe5 {[%clk 0:02:06]} 9. Nd2 {[%clk 0:02:55]}  Nf6 {[%clk 0:02:06]} 10. Nc4 {[%clk 0:02:55]}  Qe7 {[%clk 0:02:03]} 11. Nxe5 {[%clk 0:02:52]}  Qxe5 {[%clk 0:02:03]} 12. Bf4 {[%clk 0:02:47]}  Qe7 {[%clk 0:01:33]} 13. Bg5 {[%clk 0:02:41]}  O-O-O {[%clk 0:01:20]} 14. Qf5+ {[%clk 0:02:31]}  Kb8 {[%clk 0:01:18]} 15. e5 {[%clk 0:02:31]}  Rd5 {[%clk 0:01:18]} 16. Bxf6 {[%clk 0:01:54]}  gxf6 {[%clk 0:01:13]} 17. Qxf6 {[%clk 0:01:40]}  Qxe5 {[%clk 0:00:54]} 18. Qxe5 {[%clk 0:01:35]}  Rxe5 {[%clk 0:00:54]} 19. Rfe1 {[%clk 0:01:35]}  Rhe8 {[%clk 0:00:53]} 20. Rxe5 {[%clk 0:01:35]}  Rxe5 {[%clk 0:00:53]} 21. Kf1 {[%clk 0:01:35]}  Kc8 {[%clk 0:00:53]} 22. f4 {[%clk 0:01:31]}  Rb5 {[%clk 0:00:35]} 23. b3 {[%clk 0:01:29]}  Kd7 {[%clk 0:00:35]} 24. Rd1+ {[%clk 0:01:07]}  Rd5 {[%clk 0:00:35]} 25. Ke2 {[%clk 0:01:00]}  Ke6 {[%clk 0:00:33]} 26. Rd3 {[%clk 0:00:45]}  Kf5 {[%clk 0:00:25]} 27. Rh3 {[%clk 0:00:42]}  Kg6 {[%clk 0:00:16]} 28. Rg3+ {[%clk 0:00:40]}  Kf5 {[%clk 0:00:15]} 29. Rg7 {[%clk 0:00:38]}  Rd7 {[%clk 0:00:10]} 30. Kf3 {[%clk 0:00:35]}  h6 {[%clk 0:00:08]} 31. g4+ {[%clk 0:00:32]}  Kf6 {[%clk 0:00:09]} 32. Rh7 {[%clk 0:00:32]}  Kg6 {[%clk 0:00:09]} 33. Rh8 {[%clk 0:00:32]}  b6 {[%clk 0:00:06]} 34. Re8 {[%clk 0:00:28]}  Rd2 {[%clk 0:00:04]} 35. Re2 {[%clk 0:00:27]}  Rd4 {[%clk 0:00:03]} 36. h3 {[%clk 0:00:26]}  c5 {[%clk 0:00:04]} 37. Re7 {[%clk 0:00:23]}  c6 {[%clk 0:00:03]} 38. Rc7 {[%clk 0:00:23]}  Rd6 {[%clk 0:00:03]} 39. Ke4 {[%clk 0:00:23]}  b5 {[%clk 0:00:03]} 40. f5+ {[%clk 0:00:23]}  Kf6 {[%clk 0:00:03]} 41. c3 {[%clk 0:00:20]}  a5 {[%clk 0:00:03]} 42. h4 {[%clk 0:00:19]}  b4 {[%clk 0:00:03]} 43. Kf4 {[%clk 0:00:20]}  bxc3 {[%clk 0:00:03]} 44. g5+ {[%clk 0:00:20]}  hxg5+ {[%clk 0:00:03]} 45. hxg5+ {[%clk 0:00:17]}  Kg7 {[%clk 0:00:03]} 46. g6 {[%clk 0:00:18]}  Rf6 {[%clk 0:00:01]} 47. gxf7 {[%clk 0:00:15]}  Rxf7 {[%clk 0:00:02]} 48. Rxc6 {[%clk 0:00:15]}  Rd7 {[%clk 0:00:01]} 49. Rxc5 {[%clk 0:00:15]}  Rd3 {[%clk 0:00:01]} 50. Kg5 {[%clk 0:00:16]}  Kf7 {[%clk 0:00:01]} 51. Rc7+ {[%clk 0:00:15]}  Kf8 {[%clk 0:00:01]} 52. Rc4 {[%clk 0:00:16]}  Rg3+ {[%clk 0:00:02]} 53. Kf6 {[%clk 0:00:16]}  Kg8 {[%clk 0:00:01]} 54. Rc8+ {[%clk 0:00:15]}  Kh7 {[%clk 0:00:01]} 55. a3 {[%clk 0:00:16]}  Rd3 {[%clk 0:00:02]} 56. b4 {[%clk 0:00:16]}  c2 {[%clk 0:00:02]} 57. bxa5 {[%clk 0:00:15]}  Rxa3 {[%clk 0:00:02]} 58. Rxc2 {[%clk 0:00:14]}  Rxa5 {[%clk 0:00:02]} 59. Rg2 {[%clk 0:00:13]}  Ra6+ {[%clk 0:00:03]} 60. Ke7 {[%clk 0:00:13]}  Ra7+ {[%clk 0:00:03]} 61. Kf6 {[%clk 0:00:14]}  Ra6+ {[%clk 0:00:04]} 62. Kg5 {[%clk 0:00:14]}  Kg7 {[%clk 0:00:03]} 63. Rc2 {[%clk 0:00:14]}  Ra7 {[%clk 0:00:02]} 64. Rc6 {[%clk 0:00:14]}  Kf7 {[%clk 0:00:02]} 65. Rh6 {[%clk 0:00:14]}  Kg7 {[%clk 0:00:02]} 66. f6+ {[%clk 0:00:13]}  Kg8 {[%clk 0:00:02]} 67. Kg6 {[%clk 0:00:14]}  Ra6 {[%clk 0:00:02]} 68. Rh3 {[%clk 0:00:13]}  Rb6 {[%clk 0:00:02]} 69. Rc3 {[%clk 0:00:10]}  Rb8 {[%clk 0:00:02]} 70. Rc7 {[%clk 0:00:10]}  Kf8 {[%clk 0:00:02]} 71. Rh7 {[%clk 0:00:10]}  Kg8 {[%clk 0:00:01]} 72. f7+ {[%clk 0:00:11]}  Kf8 {[%clk 0:00:01]} 73. Rh8+ {[%clk 0:00:11]}  Ke7 {[%clk 0:00:02]} 74. Rxb8 {[%clk 0:00:12]} 1-0


[Site "https://www.chess.com"]

[Event "Titled Tuesday Blitz September 27 Early 2022"]
[White "Dahale, Atul"]
[Black "Martin Carmona, Gaston Manuel"]
[WhiteFideId "5037794"]
[BlackFideId "22284567"]
[WhiteElo "2017"]
[BlackElo "2162"]
[Result "1-0"]
[Round "08"]
[TimeControl "180+1"]
[Date "2022.09.27"]
[WhiteClock "0:01:15"]
[BlackClock "0:01:07"]

1. d4 {[%clk 0:03:00]}  Nf6 {[%clk 0:02:56]} 2. b3 {[%clk 0:03:00]}  a5 {[%clk 0:02:55]} 3. a4 {[%clk 0:03:00]}  g6 {[%clk 0:02:53]} 4. Bb2 {[%clk 0:02:51]}  Bg7 {[%clk 0:02:54]} 5. Nf3 {[%clk 0:02:51]}  O-O {[%clk 0:02:52]} 6. Nbd2 {[%clk 0:02:51]}  b6 {[%clk 0:02:50]} 7. e4 {[%clk 0:02:51]}  d6 {[%clk 0:02:49]} 8. Bd3 {[%clk 0:02:51]}  Na6 {[%clk 0:02:47]} 9. O-O {[%clk 0:02:50]}  Nb4 {[%clk 0:02:47]} 10. Qe2 {[%clk 0:02:47]}  Nxd3 {[%clk 0:02:46]} 11. cxd3 {[%clk 0:02:48]}  c5 {[%clk 0:02:41]} 12. dxc5 {[%clk 0:02:47]}  bxc5 {[%clk 0:02:42]} 13. Nc4 {[%clk 0:02:44]}  Be6 {[%clk 0:02:40]} 14. Bc3 {[%clk 0:02:44]}  Qc7 {[%clk 0:02:38]} 15. Qd2 {[%clk 0:02:43]}  Rfb8 {[%clk 0:02:39]} 16. Bxa5 {[%clk 0:02:37]}  Qc6 {[%clk 0:02:37]} 17. Rfb1 {[%clk 0:02:31]}  Nxe4 {[%clk 0:02:24]} 18. dxe4 {[%clk 0:02:31]}  Bxa1 {[%clk 0:02:25]} 19. Rxa1 {[%clk 0:02:31]}  Rxb3 {[%clk 0:02:26]} 20. Qc2 {[%clk 0:02:10]}  Rb7 {[%clk 0:02:20]} 21. Bd2 {[%clk 0:02:05]}  Qa6 {[%clk 0:02:01]} 22. Ne3 {[%clk 0:02:00]}  Bb3 {[%clk 0:01:49]} 23. Qc3 {[%clk 0:01:56]}  Bxa4 {[%clk 0:01:48]} 24. Nd5 {[%clk 0:01:50]}  Qe2 {[%clk 0:01:47]} 25. Re1 {[%clk 0:01:45]}  Qb5 {[%clk 0:01:46]} 26. Bh6 {[%clk 0:01:39]}  f6 {[%clk 0:01:45]} 27. e5 {[%clk 0:01:33]}  dxe5 {[%clk 0:01:42]} 28. Nxe5 {[%clk 0:01:33]}  Qb3 {[%clk 0:01:30]} 29. Qxc5 {[%clk 0:01:22]}  fxe5 {[%clk 0:01:19]} 30. Nxe7+ {[%clk 0:01:21]}  Kf7 {[%clk 0:01:15]} 31. Qxe5 {[%clk 0:01:17]}  Re8 {[%clk 0:01:07]} 32. Qg7# {[%clk 0:01:15]} 1-0


[Site "https://www.chess.com"]

[Event "Titled Tuesday Blitz September 27 Early 2022"]
[White "De Silva, L M S T"]
[Black "Tang, Andrew"]
[WhiteFideId "9953698"]
[BlackFideId "2059630"]
[WhiteElo "1727"]
[BlackElo "2584"]
[Result "0-1"]
[Round "08"]
[TimeControl "180+1"]
[Date "2022.09.27"]
[WhiteClock "0:00:14"]
[BlackClock "0:00:56"]

1. e4 {[%clk 0:03:00]}  e5 {[%clk 0:02:58]} 2. Nf3 {[%clk 0:03:00]}  Nc6 {[%clk 0:02:58]} 3. Bb5 {[%clk 0:02:58]}  g6 {[%clk 0:02:58]} 4. O-O {[%clk 0:02:58]}  Bg7 {[%clk 0:02:58]} 5. Re1 {[%clk 0:02:58]}  a6 {[%clk 0:02:58]} 6. Ba4 {[%clk 0:02:58]}  d6 {[%clk 0:02:54]} 7. c3 {[%clk 0:02:58]}  b5 {[%clk 0:02:53]} 8. Bc2 {[%clk 0:02:57]}  Nf6 {[%clk 0:02:53]} 9. d4 {[%clk 0:02:57]}  O-O {[%clk 0:02:48]} 10. h3 {[%clk 0:02:57]}  Re8 {[%clk 0:02:48]} 11. Nbd2 {[%clk 0:02:54]}  Bb7 {[%clk 0:02:48]} 12. Nf1 {[%clk 0:02:53]}  exd4 {[%clk 0:02:47]} 13. cxd4 {[%clk 0:02:51]}  Nb4 {[%clk 0:02:47]} 14. Ng3 {[%clk 0:02:51]}  Nxc2 {[%clk 0:02:47]} 15. Qxc2 {[%clk 0:02:52]}  c5 {[%clk 0:02:47]} 16. dxc5 {[%clk 0:02:51]}  dxc5 {[%clk 0:02:46]} 17. Bg5 {[%clk 0:02:45]}  h6 {[%clk 0:02:46]} 18. Rad1 {[%clk 0:02:44]}  Qb6 {[%clk 0:02:42]} 19. Bxf6 {[%clk 0:02:40]}  Qxf6 {[%clk 0:02:38]} 20. e5 {[%clk 0:02:36]}  Qb6 {[%clk 0:01:50]} 21. Rd6 {[%clk 0:02:33]}  Qc7 {[%clk 0:01:49]} 22. Qd3 {[%clk 0:00:29]}  c4 {[%clk 0:01:28]} 23. Qd4 {[%clk 0:00:27]}  Re7 {[%clk 0:01:21]} 24. Ne4 {[%clk 0:00:25]}  Rae8 {[%clk 0:01:14]} 25. Nf6+ {[%clk 0:00:17]}  Bxf6 {[%clk 0:01:13]} 26. Rxf6 {[%clk 0:00:17]}  Bxf3 {[%clk 0:01:13]} 27. Rxf3 {[%clk 0:00:15]}  Rxe5 {[%clk 0:01:13]} 28. Rxe5 {[%clk 0:00:15]}  Qxe5 {[%clk 0:01:12]} 29. Qxe5 {[%clk 0:00:13]}  Rxe5 {[%clk 0:01:12]} 30. Rf6 {[%clk 0:00:14]}  Re6 {[%clk 0:01:03]} 31. Rxe6 {[%clk 0:00:08]}  fxe6 {[%clk 0:01:02]} 32. Kf1 {[%clk 0:00:09]}  Kf7 {[%clk 0:00:57]} 33. Ke2 {[%clk 0:00:09]}  Kf6 {[%clk 0:00:57]} 34. Ke3 {[%clk 0:00:09]}  Ke5 {[%clk 0:00:57]} 35. b4 {[%clk 0:00:09]}  cxb3 {[%clk 0:00:54]} 36. axb3 {[%clk 0:00:10]}  a5 {[%clk 0:00:55]} 37. f4+ {[%clk 0:00:10]}  Kd5 {[%clk 0:00:54]} 38. Kd3 {[%clk 0:00:11]}  a4 {[%clk 0:00:54]} 39. bxa4 {[%clk 0:00:12]}  bxa4 {[%clk 0:00:55]} 40. Kc3 {[%clk 0:00:12]}  Ke4 {[%clk 0:00:55]} 41. Kb4 {[%clk 0:00:13]}  Kxf4 {[%clk 0:00:56]} 42. Kxa4 {[%clk 0:00:14]}  Kg3 {[%clk 0:00:56]} 0-1


[Site "https://www.chess.com"]

[Event "Titled Tuesday Blitz September 27 Early 2022"]
[White "Dilanyan, Grigor"]
[Black "Sharifov, Mekhriddin"]
[WhiteFideId "13303570"]
[BlackFideId "14701545"]
[WhiteElo "2264"]
[BlackElo "1540"]
[Result "1-0"]
[Round "08"]
[TimeControl "180+1"]
[Date "2022.09.27"]
[WhiteClock "0:00:15"]
[BlackClock "0:00:04"]

1. e4 {[%clk 0:03:00]}  c5 {[%clk 0:02:59]} 2. Nf3 {[%clk 0:03:00]}  d6 {[%clk 0:02:59]} 3. Bb5+ {[%clk 0:03:00]}  Nd7 {[%clk 0:02:59]} 4. a4 {[%clk 0:02:44]}  Nf6 {[%clk 0:02:58]} 5. Nc3 {[%clk 0:02:42]}  g6 {[%clk 0:02:53]} 6. O-O {[%clk 0:02:38]}  Bg7 {[%clk 0:02:53]} 7. a5 {[%clk 0:02:30]}  a6 {[%clk 0:02:52]} 8. Be2 {[%clk 0:02:29]}  O-O {[%clk 0:02:51]} 9. d3 {[%clk 0:02:29]}  Nb8 {[%clk 0:02:36]} 10. e5 {[%clk 0:02:23]}  dxe5 {[%clk 0:02:28]} 11. Nxe5 {[%clk 0:02:22]}  Nd5 {[%clk 0:02:23]} 12. Nxd5 {[%clk 0:02:19]}  Qxd5 {[%clk 0:02:23]} 13. Nc4 {[%clk 0:02:19]}  Qd8 {[%clk 0:02:04]} 14. Be3 {[%clk 0:01:54]}  Nd7 {[%clk 0:01:52]} 15. Qd2 {[%clk 0:01:53]}  Re8 {[%clk 0:01:42]} 16. Bh6 {[%clk 0:01:52]}  Bh8 {[%clk 0:01:42]} 17. Rae1 {[%clk 0:01:51]}  b5 {[%clk 0:01:40]} 18. axb6 {[%clk 0:01:45]}  Nxb6 {[%clk 0:01:41]} 19. Na5 {[%clk 0:01:45]}  Be6 {[%clk 0:01:25]} 20. Bf3 {[%clk 0:01:44]}  Bd5 {[%clk 0:01:24]} 21. Bxd5 {[%clk 0:01:38]}  Qxd5 {[%clk 0:01:22]} 22. Re4 {[%clk 0:01:36]}  Bxb2 {[%clk 0:01:18]} 23. c3 {[%clk 0:01:28]}  c4 {[%clk 0:00:56]} 24. Nxc4 {[%clk 0:01:20]}  Nxc4 {[%clk 0:00:56]} 25. Rxc4 {[%clk 0:01:20]}  Ba3 {[%clk 0:00:54]} 26. Rh4 {[%clk 0:01:16]}  Rad8 {[%clk 0:00:41]} 27. Bg7 {[%clk 0:01:01]}  g5 {[%clk 0:00:28]} 28. Rh5 {[%clk 0:00:54]}  f6 {[%clk 0:00:27]} 29. Bh6 {[%clk 0:00:48]}  Qxd3 {[%clk 0:00:25]} 30. Qa2+ {[%clk 0:00:48]}  Qd5 {[%clk 0:00:11]} 31. Qxa3 {[%clk 0:00:47]}  Qf7 {[%clk 0:00:12]} 32. Rh3 {[%clk 0:00:47]}  Qg6 {[%clk 0:00:12]} 33. f4 {[%clk 0:00:47]}  g4 {[%clk 0:00:12]} 34. f5 {[%clk 0:00:45]}  Qf7 {[%clk 0:00:08]} 35. Rg3 {[%clk 0:00:44]}  Qh5 {[%clk 0:00:09]} 36. Bf4 {[%clk 0:00:43]}  Kh8 {[%clk 0:00:07]} 37. Qxa6 {[%clk 0:00:39]}  Qxf5 {[%clk 0:00:07]} 38. Qe2 {[%clk 0:00:38]}  h5 {[%clk 0:00:05]} 39. Be3 {[%clk 0:00:36]}  Qe4 {[%clk 0:00:05]} 40. h3 {[%clk 0:00:32]}  Rd3 {[%clk 0:00:04]} 41. hxg4 {[%clk 0:00:31]}  hxg4 {[%clk 0:00:05]} 42. Re1 {[%clk 0:00:20]}  Rc8 {[%clk 0:00:05]} 43. Rxg4 {[%clk 0:00:19]}  Qh7 {[%clk 0:00:05]} 44. Qf2 {[%clk 0:00:18]}  Rcxc3 {[%clk 0:00:05]} 45. Rh4 {[%clk 0:00:18]}  Qxh4 {[%clk 0:00:02]} 46. Qxh4+ {[%clk 0:00:19]}  Kg8 {[%clk 0:00:03]} 47. Qg4+ {[%clk 0:00:19]}  Kf7 {[%clk 0:00:04]} 48. Bf2 {[%clk 0:00:18]}  e5 {[%clk 0:00:03]} 49. Qh5+ {[%clk 0:00:18]}  Ke6 {[%clk 0:00:03]} 50. Qg4+ {[%clk 0:00:18]}  Ke7 {[%clk 0:00:03]} 51. Bh4 {[%clk 0:00:18]}  Rd4 {[%clk 0:00:03]} 52. Qxd4 {[%clk 0:00:16]}  Rc6 {[%clk 0:00:02]} 53. Qxe5+ {[%clk 0:00:16]}  Kf7 {[%clk 0:00:02]} 54. Qe8+ {[%clk 0:00:16]}  Kg7 {[%clk 0:00:02]} 55. Qxc6 {[%clk 0:00:15]}  Kh6 {[%clk 0:00:03]} 56. Qxf6+ {[%clk 0:00:15]}  Kh7 {[%clk 0:00:04]} 57. Re7+ {[%clk 0:00:15]}  Kg8 {[%clk 0:00:04]} 58. Qg7# {[%clk 0:00:15]} 1-0


[Site "https://www.chess.com"]

[Event "Titled Tuesday Blitz September 27 Early 2022"]
[White "Dowgird, Filip"]
[Black "Malek, Jan"]
[WhiteFideId "1121235"]
[BlackFideId "21864080"]
[WhiteElo "2215"]
[BlackElo "2172"]
[Result "0-1"]
[Round "08"]
[TimeControl "180+1"]
[Date "2022.09.27"]
[WhiteClock "0:00:52"]
[BlackClock "0:01:27"]

1. d4 {[%clk 0:03:00]}  e6 {[%clk 0:02:58]} 2. Bf4 {[%clk 0:02:57]}  b6 {[%clk 0:02:55]} 3. Nc3 {[%clk 0:02:52]}  Bb7 {[%clk 0:02:56]} 4. e4 {[%clk 0:02:52]}  Bb4 {[%clk 0:02:54]} 5. f3 {[%clk 0:02:53]}  d5 {[%clk 0:02:49]} 6. Bb5+ {[%clk 0:02:45]}  c6 {[%clk 0:02:47]} 7. Be2 {[%clk 0:02:45]}  c5 {[%clk 0:02:47]} 8. Bxb8 {[%clk 0:02:38]}  Rxb8 {[%clk 0:02:45]} 9. dxc5 {[%clk 0:02:20]}  Bxc5 {[%clk 0:02:34]} 10. exd5 {[%clk 0:02:18]}  exd5 {[%clk 0:02:30]} 11. Bb5+ {[%clk 0:02:17]}  Kf8 {[%clk 0:02:30]} 12. Nge2 {[%clk 0:02:07]}  a6 {[%clk 0:02:30]} 13. Ba4 {[%clk 0:02:07]}  Nf6 {[%clk 0:02:28]} 14. Qd3 {[%clk 0:02:06]}  b5 {[%clk 0:02:26]} 15. Bb3 {[%clk 0:02:06]}  Qd6 {[%clk 0:01:52]} 16. O-O-O {[%clk 0:02:04]}  Rd8 {[%clk 0:01:52]} 17. Kb1 {[%clk 0:01:51]}  g6 {[%clk 0:01:50]} 18. Nd4 {[%clk 0:01:45]}  Kg7 {[%clk 0:01:50]} 19. g3 {[%clk 0:01:41]}  Rhe8 {[%clk 0:01:49]} 20. Rhe1 {[%clk 0:01:23]}  Qb6 {[%clk 0:01:45]} 21. Rxe8 {[%clk 0:01:22]}  Rxe8 {[%clk 0:01:44]} 22. Nce2 {[%clk 0:01:20]}  a5 {[%clk 0:01:34]} 23. a4 {[%clk 0:01:15]}  bxa4 {[%clk 0:01:31]} 24. Bxa4 {[%clk 0:01:16]}  Ba6 {[%clk 0:01:31]} 25. Nb5 {[%clk 0:00:55]}  Rb8 {[%clk 0:01:27]} 26. Nec3 {[%clk 0:00:52]}  d4 {[%clk 0:01:27]} 0-1


[Site "https://www.chess.com"]

[Event "Titled Tuesday Blitz September 27 Early 2022"]
[White "Ernst, Sipke"]
[Black "Ibrahimli, Murad"]
[WhiteFideId "1004689"]
[BlackFideId "13410229"]
[WhiteElo "2683"]
[BlackElo "2819"]
[Result "0-1"]
[Round "08"]
[TimeControl "180+1"]
[Date "2022.09.27"]
[WhiteClock "0:00:28"]
[BlackClock "0:01:40"]

1. d4 {[%clk 0:03:00]}  Nf6 {[%clk 0:03:00]} 2. c4 {[%clk 0:03:00]}  c5 {[%clk 0:03:01]} 3. d5 {[%clk 0:03:00]}  e6 {[%clk 0:03:01]} 4. Nc3 {[%clk 0:03:00]}  exd5 {[%clk 0:03:02]} 5. cxd5 {[%clk 0:03:00]}  d6 {[%clk 0:03:03]} 6. e4 {[%clk 0:03:01]}  g6 {[%clk 0:03:03]} 7. f4 {[%clk 0:03:01]}  Bg7 {[%clk 0:03:03]} 8. Bb5+ {[%clk 0:03:02]}  Nfd7 {[%clk 0:03:04]} 9. Bd3 {[%clk 0:03:02]}  O-O {[%clk 0:03:04]} 10. Nf3 {[%clk 0:03:02]}  Re8 {[%clk 0:03:03]} 11. O-O {[%clk 0:03:02]}  Na6 {[%clk 0:03:03]} 12. Kh1 {[%clk 0:02:52]}  Nc7 {[%clk 0:03:02]} 13. a4 {[%clk 0:02:52]}  b6 {[%clk 0:02:56]} 14. Bd2 {[%clk 0:02:34]}  Ba6 {[%clk 0:02:55]} 15. Nb5 {[%clk 0:02:14]}  Bxb5 {[%clk 0:02:55]} 16. axb5 {[%clk 0:02:14]}  c4 {[%clk 0:02:55]} 17. Bc2 {[%clk 0:02:11]}  Nxb5 {[%clk 0:02:55]} 18. Ba4 {[%clk 0:02:03]}  a6 {[%clk 0:02:53]} 19. Qc2 {[%clk 0:01:54]}  Nc5 {[%clk 0:02:51]} 20. e5 {[%clk 0:01:49]}  dxe5 {[%clk 0:02:50]} 21. Qxc4 {[%clk 0:01:35]}  Nxa4 {[%clk 0:02:45]} 22. Rxa4 {[%clk 0:01:33]}  Nd6 {[%clk 0:02:45]} 23. Qa2 {[%clk 0:01:30]}  e4 {[%clk 0:02:44]} 24. Ne5 {[%clk 0:01:30]}  a5 {[%clk 0:02:40]} 25. Bc3 {[%clk 0:01:27]}  Qc7 {[%clk 0:02:21]} 26. Qa1 {[%clk 0:01:19]}  Nb5 {[%clk 0:02:10]} 27. Rc4 {[%clk 0:01:11]}  Qb7 {[%clk 0:02:08]} 28. Nc6 {[%clk 0:01:09]}  Nxc3 {[%clk 0:02:08]} 29. bxc3 {[%clk 0:01:09]}  e3 {[%clk 0:02:07]} 30. Re1 {[%clk 0:01:03]}  Qd7 {[%clk 0:02:08]} 31. Qd1 {[%clk 0:01:00]}  Qd6 {[%clk 0:01:59]} 32. Qd3 {[%clk 0:00:56]}  b5 {[%clk 0:01:58]} 33. Re4 {[%clk 0:00:54]}  Rxe4 {[%clk 0:01:54]} 34. Qxe4 {[%clk 0:00:54]}  Bxc3 {[%clk 0:01:55]} 35. Rxe3 {[%clk 0:00:54]}  Bf6 {[%clk 0:01:55]} 36. g4 {[%clk 0:00:52]}  h6 {[%clk 0:01:54]} 37. g5 {[%clk 0:00:50]}  hxg5 {[%clk 0:01:54]} 38. fxg5 {[%clk 0:00:50]}  Bxg5 {[%clk 0:01:54]} 39. Rg3 {[%clk 0:00:49]}  Bf6 {[%clk 0:01:52]} 40. h4 {[%clk 0:00:43]}  Kg7 {[%clk 0:01:51]} 41. Rg4 {[%clk 0:00:31]}  a4 {[%clk 0:01:45]} 42. Rf4 {[%clk 0:00:28]}  a3 {[%clk 0:01:42]} 43. Nd4 {[%clk 0:00:28]}  a2 {[%clk 0:01:40]} 0-1


[Site "https://www.chess.com"]

[Event "Titled Tuesday Blitz September 27 Early 2022"]
[White "Estrada Nieto, Julian"]
[Black "Saucey, Michel"]
[WhiteFideId "5101018"]
[BlackFideId "601845"]
[WhiteElo "2252"]
[BlackElo "2253"]
[Result "1-0"]
[Round "08"]
[TimeControl "180+1"]
[Date "2022.09.27"]
[WhiteClock "0:00:15"]
[BlackClock "0:00:01"]

1. e4 {[%clk 0:03:00]}  c5 {[%clk 0:02:59]} 2. Nf3 {[%clk 0:03:00]}  e6 {[%clk 0:02:58]} 3. c3 {[%clk 0:02:59]}  d5 {[%clk 0:02:58]} 4. exd5 {[%clk 0:02:59]}  Qxd5 {[%clk 0:02:58]} 5. d4 {[%clk 0:03:00]}  Nf6 {[%clk 0:02:57]} 6. Na3 {[%clk 0:03:00]}  Qd8 {[%clk 0:02:53]} 7. Nc2 {[%clk 0:02:59]}  Nc6 {[%clk 0:02:47]} 8. Bd3 {[%clk 0:02:53]}  Be7 {[%clk 0:02:46]} 9. O-O {[%clk 0:02:53]}  O-O {[%clk 0:02:46]} 10. Qe2 {[%clk 0:02:53]}  b6 {[%clk 0:02:44]} 11. Bg5 {[%clk 0:02:52]}  Bb7 {[%clk 0:02:43]} 12. Rad1 {[%clk 0:02:51]}  Qc7 {[%clk 0:02:29]} 13. dxc5 {[%clk 0:02:41]}  bxc5 {[%clk 0:02:28]} 14. Ne3 {[%clk 0:02:37]}  Rad8 {[%clk 0:02:18]} 15. Nc4 {[%clk 0:02:36]}  Nd5 {[%clk 0:02:13]} 16. Bxe7 {[%clk 0:02:32]}  Qxe7 {[%clk 0:02:12]} 17. g3 {[%clk 0:02:26]}  g6 {[%clk 0:02:05]} 18. Rfe1 {[%clk 0:02:25]}  Nb6 {[%clk 0:01:59]} 19. Nxb6 {[%clk 0:02:17]}  axb6 {[%clk 0:01:58]} 20. h4 {[%clk 0:02:07]}  Rd6 {[%clk 0:01:37]} 21. Bc2 {[%clk 0:01:59]}  Rfd8 {[%clk 0:01:35]} 22. Rxd6 {[%clk 0:01:59]}  Rxd6 {[%clk 0:01:35]} 23. Rd1 {[%clk 0:01:55]}  Rxd1+ {[%clk 0:01:31]} 24. Qxd1 {[%clk 0:01:55]}  h6 {[%clk 0:01:22]} 25. Qd2 {[%clk 0:01:53]}  Kg7 {[%clk 0:01:21]} 26. Be4 {[%clk 0:01:39]}  Qc7 {[%clk 0:01:03]} 27. Qe3 {[%clk 0:01:36]}  f5 {[%clk 0:00:55]} 28. Bd3 {[%clk 0:01:24]}  e5 {[%clk 0:00:48]} 29. Bf1 {[%clk 0:01:05]}  e4 {[%clk 0:00:40]} 30. Nd2 {[%clk 0:01:04]}  Ne5 {[%clk 0:00:38]} 31. Be2 {[%clk 0:00:59]}  h5 {[%clk 0:00:22]} 32. Nc4 {[%clk 0:00:53]}  Nf7 {[%clk 0:00:19]} 33. Qd2 {[%clk 0:00:46]}  Ba6 {[%clk 0:00:16]} 34. Ne3 {[%clk 0:00:45]}  Bxe2 {[%clk 0:00:14]} 35. Qxe2 {[%clk 0:00:45]}  Ne5 {[%clk 0:00:14]} 36. Qb5 {[%clk 0:00:32]}  Qd6 {[%clk 0:00:12]} 37. Kg2 {[%clk 0:00:26]}  Kf6 {[%clk 0:00:08]} 38. Qe8 {[%clk 0:00:25]}  Nd3 {[%clk 0:00:03]} 39. Qh8+ {[%clk 0:00:18]}  Kf7 {[%clk 0:00:02]} 40. Qh7+ {[%clk 0:00:18]}  Kf6 {[%clk 0:00:02]} 41. Nc4 {[%clk 0:00:16]}  Qc6 {[%clk 0:00:01]} 42. Qh8+ {[%clk 0:00:15]} 1-0


[Site "https://www.chess.com"]